[Event "Late-Titled-Tuesday-Blitz-February-06-2024"]
[Site "Chess.com"]
[Date "2024.02.06"]
[Round "2"]
[White "shirovin"]
[Black "Onthequiet"]
[Result "0-1"]
[WhiteElo "2078"]
[BlackElo "2442"]
[TimeControl "180+1"]
[EndTime "14:17:31 PST"]
[Termination "Onthequiet won on time"]

1. e4 {[%clk 0:03:00.9]} 1... c5 {[%clk 0:02:58.6]} 2. Nf3 {[%clk 0:03:00.5]}
2... Nc6 {[%clk 0:02:58.4]} 3. b4 {[%clk 0:02:59.1]} 3... cxb4 {[%clk
0:02:58.2]} 4. d4 {[%clk 0:02:57.2]} 4... d5 {[%clk 0:02:56.4]} 5. exd5 {[%clk
0:02:56.7]} 5... Qxd5 {[%clk 0:02:57.2]} 6. c4 {[%clk 0:02:56.8]} 6... Qe4+
{[%clk 0:02:56.4]} 7. Be3 {[%clk 0:02:54.4]} 7... e6 {[%clk 0:02:56.4]} 8. Nbd2
{[%clk 0:02:44.7]} 8... Qg6 {[%clk 0:02:54.1]} 9. Be2 {[%clk 0:02:30]} 9... Qxg2
{[%clk 0:02:52.5]} 10. Rg1 {[%clk 0:02:16.4]} 10... Qh3 {[%clk 0:02:51.6]} 11.
d5 {[%clk 0:01:50.3]} 11... Nce7 {[%clk 0:02:48.5]} 12. d6 {[%clk 0:01:21.2]}
12... Nf5 {[%clk 0:02:47.4]} 13. c5 {[%clk 0:01:18.6]} 13... Nf6 {[%clk
0:02:44.7]} 14. Bd3 {[%clk 0:01:13.5]} 14... Nxe3 {[%clk 0:02:43.2]} 15. fxe3
{[%clk 0:01:11.3]} 15... Bd7 {[%clk 0:02:38.6]} 16. Qe2 {[%clk 0:00:54.6]} 16...
Rc8 {[%clk 0:02:35.6]} 17. Rc1 {[%clk 0:00:50.6]} 17... Bxd6 {[%clk 0:02:28.8]}
18. Nb3 {[%clk 0:00:32.7]} 18... Bf8 {[%clk 0:02:07.5]} 19. Ne5 {[%clk 0:00:26]}
19... Bc6 {[%clk 0:01:45.7]} 20. Nxc6 {[%clk 0:00:24.7]} 20... bxc6 {[%clk
0:01:46.6]} 21. Nd4 {[%clk 0:00:21.5]} 21... g6 {[%clk 0:01:40.8]} 22. Rg3
{[%clk 0:00:18]} 22... Qh4 {[%clk 0:01:38.4]} 23. Qg2 {[%clk 0:00:15.4]} 23...
Bh6 {[%clk 0:01:32.7]} 24. Ke2 {[%clk 0:00:12.4]} 24... Nd5 {[%clk 0:01:20.7]}
25. Be4 {[%clk 0:00:10.4]} 25... O-O {[%clk 0:01:14.4]} 26. Bxd5 {[%clk
0:00:09.4]} 26... cxd5 {[%clk 0:01:13.3]} 27. c6 {[%clk 0:00:08.5]} 27... Qxd4
{[%clk 0:01:02.9]} 28. exd4 {[%clk 0:00:07.5]} 28... Bxc1 {[%clk 0:01:03.8]} 29.
Qf1 {[%clk 0:00:06.2]} 29... Bh6 {[%clk 0:01:02.9]} 30. Rb3 {[%clk 0:00:04.6]}
30... Rxc6 {[%clk 0:01:00.6]} 31. Rxb4 {[%clk 0:00:04.9]} 31... Rc2+ {[%clk
0:00:58.7]} 32. Kd3 {[%clk 0:00:04.9]} 32... Rd2+ {[%clk 0:00:57.2]} 33. Kc3
{[%clk 0:00:03.5]} 33... Rxh2 {[%clk 0:00:53.7]} 34. Qb5 {[%clk 0:00:01.9]}
34... Bd2+ {[%clk 0:00:52.7]} 35. Kb3 {[%clk 0:00:01.1]} 35... Bxb4 {[%clk
0:00:53.6]} 0-1

[Event "Late-Titled-Tuesday-Blitz-February-06-2024"]
[Site "Chess.com"]
[Date "2024.02.06"]
[Round "2"]
[White "KantorGergely"]
[Black "szachmistrz2500"]
[Result "0-1"]
[WhiteElo "2751"]
[BlackElo "2507"]
[TimeControl "180+1"]
[EndTime "14:17:34 PST"]
[Termination "szachmistrz2500 won on time"]

1. e4 {[%clk 0:02:59]} 1... c5 {[%clk 0:03:00]} 2. Nf3 {[%clk 0:02:58.9]} 2...
d6 {[%clk 0:03:00]} 3. Bb5+ {[%clk 0:02:58.9]} 3... Bd7 {[%clk 0:02:59]} 4.
Bxd7+ {[%clk 0:02:56.9]} 4... Qxd7 {[%clk 0:02:59.1]} 5. O-O {[%clk 0:02:57.2]}
5... Nc6 {[%clk 0:02:59.4]} 6. Re1 {[%clk 0:02:56.8]} 6... Nf6 {[%clk
0:02:59.5]} 7. c3 {[%clk 0:02:55.7]} 7... e6 {[%clk 0:02:59.6]} 8. d4 {[%clk
0:02:56]} 8... cxd4 {[%clk 0:03:00.5]} 9. cxd4 {[%clk 0:02:56]} 9... d5 {[%clk
0:03:01]} 10. e5 {[%clk 0:02:56.4]} 10... Ne4 {[%clk 0:03:01.5]} 11. a3 {[%clk
0:02:51.1]} 11... Be7 {[%clk 0:02:59]} 12. Nbd2 {[%clk 0:02:50.6]} 12... Nxd2
{[%clk 0:02:57]} 13. Bxd2 {[%clk 0:02:50.6]} 13... Rc8 {[%clk 0:02:56.7]} 14.
Rc1 {[%clk 0:02:50.5]} 14... b5 {[%clk 0:02:48.9]} 15. Rc3 {[%clk 0:02:41]}
15... b4 {[%clk 0:02:48.3]} 16. Rd3 {[%clk 0:02:41.4]} 16... bxa3 {[%clk
0:02:43.4]} 17. bxa3 {[%clk 0:02:41.1]} 17... O-O {[%clk 0:02:40.9]} 18. h4
{[%clk 0:02:40.9]} 18... f6 {[%clk 0:02:31]} 19. exf6 {[%clk 0:02:29.3]} 19...
Bxf6 {[%clk 0:02:30.5]} 20. Qe2 {[%clk 0:02:27.2]} 20... Rce8 {[%clk 0:02:15.8]}
21. Bb4 {[%clk 0:02:27.2]} 21... Nxb4 {[%clk 0:02:10.6]} 22. axb4 {[%clk
0:02:27.2]} 22... Qb5 {[%clk 0:02:08.3]} 23. Re3 {[%clk 0:02:18.9]} 23... Qxb4
{[%clk 0:02:00.2]} 24. Rxe6 {[%clk 0:02:18.7]} 24... Rc8 {[%clk 0:01:43.8]} 25.
Qe3 {[%clk 0:01:24.2]} 25... a5 {[%clk 0:01:37]} 26. Ra6 {[%clk 0:01:20.6]}
26... Rfe8 {[%clk 0:01:24.4]} 27. Qxe8+ {[%clk 0:01:12.5]} 27... Rxe8 {[%clk
0:01:24.1]} 28. Rxe8+ {[%clk 0:01:12.8]} 28... Kf7 {[%clk 0:01:23.9]} 29. Rea8
{[%clk 0:01:00.3]} 29... Bxd4 {[%clk 0:01:18.9]} 30. Rxa5 {[%clk 0:00:19.8]}
30... Qb1+ {[%clk 0:01:10.1]} 31. Kh2 {[%clk 0:00:20]} 31... Bxf2 {[%clk
0:00:58.3]} 32. Rxd5 {[%clk 0:00:20.1]} 32... Qb7 {[%clk 0:00:51.8]} 33. Ne5+
{[%clk 0:00:16.5]} 33... Ke6 {[%clk 0:00:46.1]} 34. Re8+ {[%clk 0:00:16.2]}
34... Kxd5 {[%clk 0:00:44.9]} 0-1

[Event "Late-Titled-Tuesday-Blitz-February-06-2024"]
[Site "Chess.com"]
[Date "2024.02.06"]
[Round "2"]
[White "DonkyDonkyDonkey"]
[Black "best926"]
[Result "1-0"]
[WhiteElo "2931"]
[BlackElo "2604"]
[TimeControl "180+1"]
[EndTime "14:17:36 PST"]
[Termination "DonkyDonkyDonkey won on time"]

1. d4 {[%clk 0:03:00.9]} 1... Nf6 {[%clk 0:02:59.4]} 2. Nc3 {[%clk 0:03:01.4]}
2... d5 {[%clk 0:02:59.3]} 3. Bf4 {[%clk 0:03:02.1]} 3... g6 {[%clk 0:02:59.7]}
4. Nb5 {[%clk 0:03:02.2]} 4... Na6 {[%clk 0:02:59.7]} 5. e3 {[%clk 0:03:02.9]}
5... Bg7 {[%clk 0:03:00]} 6. Nc3 {[%clk 0:02:58.4]} 6... Nb8 {[%clk 0:02:57.5]}
7. h3 {[%clk 0:02:57.4]} 7... c6 {[%clk 0:02:56.8]} 8. Nf3 {[%clk 0:02:58]} 8...
O-O {[%clk 0:02:57.1]} 9. Be2 {[%clk 0:02:58.6]} 9... b5 {[%clk 0:02:57.8]} 10.
O-O {[%clk 0:02:58.5]} 10... a5 {[%clk 0:02:58.1]} 11. Ne5 {[%clk 0:02:55.5]}
11... Nfd7 {[%clk 0:02:56.2]} 12. Nxd7 {[%clk 0:02:47.2]} 12... Nxd7 {[%clk
0:02:53.9]} 13. Re1 {[%clk 0:02:45.8]} 13... e5 {[%clk 0:02:49.2]} 14. dxe5
{[%clk 0:02:45.3]} 14... Nxe5 {[%clk 0:02:50.1]} 15. Bg3 {[%clk 0:02:41.1]}
15... Qe7 {[%clk 0:02:42.9]} 16. Kh1 {[%clk 0:02:38.6]} 16... Rd8 {[%clk
0:02:38.2]} 17. e4 {[%clk 0:02:10.6]} 17... dxe4 {[%clk 0:02:18.8]} 18. Qc1
{[%clk 0:02:10.9]} 18... f5 {[%clk 0:02:19.5]} 19. f3 {[%clk 0:02:11]} 19... b4
{[%clk 0:02:00.4]} 20. Na4 {[%clk 0:02:10.9]} 20... Be6 {[%clk 0:01:48.5]} 21.
fxe4 {[%clk 0:02:10.3]} 21... fxe4 {[%clk 0:01:48.2]} 22. Qe3 {[%clk 0:02:04.2]}
22... Bd5 {[%clk 0:01:25.8]} 23. Rad1 {[%clk 0:02:04.2]} 23... Nf7 {[%clk
0:01:11]} 24. c4 {[%clk 0:01:59.8]} 24... bxc3 {[%clk 0:01:10.1]} 25. Nxc3
{[%clk 0:01:59.8]} 25... Nh6 {[%clk 0:00:53.9]} 26. Nxd5 {[%clk 0:01:45.3]}
26... cxd5 {[%clk 0:00:54.8]} 27. Qb3 {[%clk 0:01:45.5]} 27... Nf5 {[%clk
0:00:39.4]} 28. Rxd5 {[%clk 0:01:34.5]} 28... Nxg3+ {[%clk 0:00:36.7]} 29. Kh2
{[%clk 0:01:35]} 29... Kh8 {[%clk 0:00:26.8]} 30. Rxd8+ {[%clk 0:01:22.1]} 30...
Rxd8 {[%clk 0:00:26.6]} 31. Kxg3 {[%clk 0:01:22.7]} 31... Be5+ {[%clk 0:00:18]}
32. Kf2 {[%clk 0:01:22]} 32... Qc5+ {[%clk 0:00:18.6]} 33. Kf1 {[%clk
0:01:17.2]} 33... Rf8+ {[%clk 0:00:17.9]} 34. Bf3 {[%clk 0:01:17.7]} 34... exf3
{[%clk 0:00:18.3]} 35. gxf3 {[%clk 0:01:18.6]} 35... Bg3 {[%clk 0:00:13.8]} 36.
Re2 {[%clk 0:01:16.7]} 36... Bh4 {[%clk 0:00:08.5]} 37. Qd3 {[%clk 0:01:13]}
37... Bf6 {[%clk 0:00:07.8]} 38. b3 {[%clk 0:01:09.6]} 38... Rd8 {[%clk
0:00:08.1]} 39. Qc2 {[%clk 0:01:05.7]} 39... Qxc2 {[%clk 0:00:04.5]} 40. Rxc2
{[%clk 0:01:06.6]} 40... Rd5 {[%clk 0:00:04.1]} 41. Rc7 {[%clk 0:01:05.7]} 41...
Rf5 {[%clk 0:00:01.6]} 42. Ke2 {[%clk 0:01:05.3]} 42... Rh5 {[%clk 0:00:01]} 43.
Rf7 {[%clk 0:01:05]} 1-0

[Event "Late-Titled-Tuesday-Blitz-February-06-2024"]
[Site "Chess.com"]
[Date "2024.02.06"]
[Round "2"]
[White "stasOR4ik"]
[Black "bilelou"]
[Result "0-1"]
[WhiteElo "2416"]
[BlackElo "2741"]
[TimeControl "180+1"]
[EndTime "14:17:37 PST"]
[Termination "bilelou won by resignation"]

1. e4 {[%clk 0:03:00.9]} 1... c5 {[%clk 0:02:59.7]} 2. c3 {[%clk 0:03:00.7]}
2... Nf6 {[%clk 0:02:41.9]} 3. e5 {[%clk 0:03:00.3]} 3... Nd5 {[%clk 0:02:41.2]}
4. Nf3 {[%clk 0:03:00.3]} 4... e6 {[%clk 0:02:41.1]} 5. d4 {[%clk 0:02:58.5]}
5... cxd4 {[%clk 0:02:42]} 6. cxd4 {[%clk 0:02:58.8]} 6... b6 {[%clk 0:02:40.6]}
7. Nc3 {[%clk 0:02:58.8]} 7... Bb7 {[%clk 0:02:38.2]} 8. Bd3 {[%clk 0:02:53.5]}
8... Nxc3 {[%clk 0:02:37]} 9. bxc3 {[%clk 0:02:53.4]} 9... Qc7 {[%clk
0:02:36.8]} 10. O-O {[%clk 0:02:35.3]} 10... Be7 {[%clk 0:02:36.1]} 11. Bg5
{[%clk 0:02:34.3]} 11... Nc6 {[%clk 0:02:35.2]} 12. Rc1 {[%clk 0:02:23.2]} 12...
h6 {[%clk 0:02:30.6]} 13. Bxe7 {[%clk 0:02:22.4]} 13... Nxe7 {[%clk 0:02:25.3]}
14. c4 {[%clk 0:02:19.8]} 14... O-O {[%clk 0:02:23.8]} 15. Bb1 {[%clk
0:02:10.2]} 15... f5 {[%clk 0:02:14.4]} 16. exf6 {[%clk 0:02:08.5]} 16... Rxf6
{[%clk 0:02:13.2]} 17. Ne5 {[%clk 0:01:55]} 17... Nc6 {[%clk 0:01:57]} 18. Qe2
{[%clk 0:01:26.3]} 18... Nxd4 {[%clk 0:01:26.9]} 19. Qe3 {[%clk 0:01:26.3]}
19... Nf5 {[%clk 0:01:21]} 20. Qc3 {[%clk 0:01:09.5]} 20... Nh4 {[%clk 0:01:17]}
21. f3 {[%clk 0:01:01.6]} 21... Nf5 {[%clk 0:01:08.7]} 22. Rfd1 {[%clk 0:01:01]}
22... Rd8 {[%clk 0:00:59.7]} 23. Ng4 {[%clk 0:00:44.9]} 23... Rf7 {[%clk
0:00:57.4]} 24. Ne5 {[%clk 0:00:26.1]} 24... Rf6 {[%clk 0:00:56.1]} 25. Ng4
{[%clk 0:00:25]} 25... Rff8 {[%clk 0:00:56.7]} 26. Rd2 {[%clk 0:00:17.4]} 26...
Qf4 {[%clk 0:00:56.6]} 27. Rcd1 {[%clk 0:00:16.6]} 27... Bc6 {[%clk 0:00:54.3]}
28. Ne5 {[%clk 0:00:15.8]} 28... Ba4 {[%clk 0:00:52.2]} 29. Bc2 {[%clk
0:00:12.8]} 29... Bxc2 {[%clk 0:00:52]} 30. Qxc2 {[%clk 0:00:13.7]} 30... Qxe5
{[%clk 0:00:51.8]} 31. Rxd7 {[%clk 0:00:13]} 31... Ne3 {[%clk 0:00:46.2]} 32.
Qd2 {[%clk 0:00:09]} 32... Rxd7 {[%clk 0:00:42.6]} 33. Qxd7 {[%clk 0:00:09.1]}
33... Nxd1 {[%clk 0:00:43.2]} 34. Qxd1 {[%clk 0:00:09.8]} 34... Qc5+ {[%clk
0:00:43.5]} 35. Kh1 {[%clk 0:00:10]} 35... Qxc4 {[%clk 0:00:44.2]} 36. Qe2
{[%clk 0:00:09.6]} 0-1

[Event "Late-Titled-Tuesday-Blitz-February-06-2024"]
[Site "Chess.com"]
[Date "2024.02.06"]
[Round "2"]
[White "mishanick"]
[Black "Philippians46"]
[Result "0-1"]
[WhiteElo "3055"]
[BlackElo "2671"]
[TimeControl "180+1"]
[EndTime "14:17:38 PST"]
[Termination "Philippians46 won by resignation"]

1. d4 {[%clk 0:03:00.9]} 1... Nf6 {[%clk 0:02:59.7]} 2. c4 {[%clk 0:03:01.5]}
2... g6 {[%clk 0:03:00]} 3. Nc3 {[%clk 0:03:01.9]} 3... d5 {[%clk 0:03:00.6]} 4.
Bg5 {[%clk 0:03:01.9]} 4... Ne4 {[%clk 0:02:59.5]} 5. Bh4 {[%clk 0:03:02.4]}
5... g5 {[%clk 0:02:59.4]} 6. Nxe4 {[%clk 0:03:00]} 6... dxe4 {[%clk 0:03:00.3]}
7. Bxg5 {[%clk 0:03:00.3]} 7... c5 {[%clk 0:03:00.8]} 8. e3 {[%clk 0:02:55.7]}
8... Bg7 {[%clk 0:03:00.9]} 9. Ne2 {[%clk 0:02:54.8]} 9... Nc6 {[%clk
0:02:58.1]} 10. Qd2 {[%clk 0:02:54.4]} 10... cxd4 {[%clk 0:02:57.5]} 11. exd4
{[%clk 0:02:54.5]} 11... Nxd4 {[%clk 0:02:58.4]} 12. O-O-O {[%clk 0:02:52.5]}
12... Nxe2+ {[%clk 0:02:58.5]} 13. Bxe2 {[%clk 0:02:53.4]} 13... Qxd2+ {[%clk
0:02:57.2]} 14. Rxd2 {[%clk 0:02:53.6]} 14... Be6 {[%clk 0:02:57.8]} 15. Kb1
{[%clk 0:02:49.4]} 15... f5 {[%clk 0:02:57.6]} 16. c5 {[%clk 0:02:38.1]} 16...
h6 {[%clk 0:02:51.6]} 17. Bf4 {[%clk 0:02:36.6]} 17... Kf7 {[%clk 0:02:51.1]}
18. Bh5+ {[%clk 0:02:36]} 18... Kf6 {[%clk 0:02:46.5]} 19. Rhd1 {[%clk
0:02:30.3]} 19... Rhc8 {[%clk 0:02:44]} 20. Be3 {[%clk 0:02:30.7]} 20... Bc4
{[%clk 0:02:30.8]} 21. Rd7 {[%clk 0:02:15.9]} 21... Bd3+ {[%clk 0:01:54.2]} 22.
Ka1 {[%clk 0:02:15.8]} 22... b6 {[%clk 0:01:55.1]} 23. cxb6 {[%clk 0:01:50.2]}
23... axb6 {[%clk 0:01:56]} 24. Bxb6 {[%clk 0:01:50.5]} 24... Rc6 {[%clk
0:01:43.2]} 25. Rb7 {[%clk 0:01:40.8]} 25... Kg5 {[%clk 0:01:39.9]} 26. Bf7
{[%clk 0:01:04.7]} 26... Rc2 {[%clk 0:01:26.3]} 27. Be3+ {[%clk 0:01:01.5]}
27... f4 {[%clk 0:01:26.7]} 28. Bd2 {[%clk 0:00:50.4]} 28... Bd4 {[%clk
0:01:03.5]} 29. g3 {[%clk 0:00:22.8]} 29... Kf6 {[%clk 0:00:58]} 30. Bd5 {[%clk
0:00:22]} 30... Rd8 {[%clk 0:00:53]} 31. Bg8 {[%clk 0:00:03.9]} 31... Rxg8
{[%clk 0:00:52.4]} 32. Bxf4 {[%clk 0:00:04.2]} 32... Rgc8 {[%clk 0:00:50.9]} 33.
a3 {[%clk 0:00:03.4]} 33... Rxf2 {[%clk 0:00:48.5]} 34. Bxh6 {[%clk 0:00:03.2]}
34... Rcc2 {[%clk 0:00:48.2]} 35. Rb1 {[%clk 0:00:02.6]} 35... Rce2 {[%clk
0:00:47.9]} 36. Rd1 {[%clk 0:00:01.3]} 36... Bxb2+ {[%clk 0:00:48.3]} 37. Ka2
{[%clk 0:00:01.8]} 37... Bd4+ {[%clk 0:00:48]} 38. Kb3 {[%clk 0:00:02.4]} 38...
Rb2+ {[%clk 0:00:48.9]} 39. Ka4 {[%clk 0:00:02.8]} 39... Rxb7 {[%clk 0:00:49.8]}
0-1

[Event "Late-Titled-Tuesday-Blitz-February-06-2024"]
[Site "Chess.com"]
[Date "2024.02.06"]
[Round "2"]
[White "DavidGavrilescu18"]
[Black "Mistango"]
[Result "1-0"]
[WhiteElo "2769"]
[BlackElo "2497"]
[TimeControl "180+1"]
[EndTime "14:17:39 PST"]
[Termination "DavidGavrilescu18 won by checkmate"]

1. e4 {[%clk 0:03:00.9]} 1... c5 {[%clk 0:02:59.6]} 2. Nf3 {[%clk 0:03:00.8]}
2... d6 {[%clk 0:03:00.2]} 3. d4 {[%clk 0:03:00.9]} 3... cxd4 {[%clk 0:03:01]}
4. Qxd4 {[%clk 0:03:01.8]} 4... Nc6 {[%clk 0:02:59.9]} 5. Qe3 {[%clk 0:03:00.7]}
5... g6 {[%clk 0:02:55.9]} 6. Be2 {[%clk 0:02:59.8]} 6... Bg7 {[%clk 0:02:56.5]}
7. O-O {[%clk 0:02:58.7]} 7... Nf6 {[%clk 0:02:57]} 8. h3 {[%clk 0:02:59.3]}
8... O-O {[%clk 0:02:57.2]} 9. Rd1 {[%clk 0:02:59.8]} 9... Bd7 {[%clk
0:02:55.9]} 10. Nc3 {[%clk 0:02:58.4]} 10... a6 {[%clk 0:02:55.4]} 11. a3 {[%clk
0:02:56.4]} 11... b5 {[%clk 0:02:55.4]} 12. Nd5 {[%clk 0:02:53.5]} 12... Nxd5
{[%clk 0:02:51.9]} 13. exd5 {[%clk 0:02:54.4]} 13... Ne5 {[%clk 0:02:52.6]} 14.
Nd4 {[%clk 0:02:51.5]} 14... Rc8 {[%clk 0:02:51.6]} 15. c3 {[%clk 0:02:51.5]}
15... Nc4 {[%clk 0:02:11.7]} 16. Qg3 {[%clk 0:02:50.6]} 16... f5 {[%clk
0:01:55.5]} 17. Rb1 {[%clk 0:02:39.2]} 17... Be5 {[%clk 0:01:54.6]} 18. Bf4
{[%clk 0:02:37.3]} 18... Qb6 {[%clk 0:01:40.3]} 19. h4 {[%clk 0:02:29.4]} 19...
Kh8 {[%clk 0:01:38.1]} 20. h5 {[%clk 0:02:24.5]} 20... Bxf4 {[%clk 0:01:35.6]}
21. Qxf4 {[%clk 0:02:24.5]} 21... Ne5 {[%clk 0:01:35.1]} 22. Qg5 {[%clk
0:02:13.7]} 22... Rf7 {[%clk 0:01:33.6]} 23. f4 {[%clk 0:02:08.2]} 23... Nc4
{[%clk 0:01:27.5]} 24. hxg6 {[%clk 0:02:07.7]} 24... Rg7 {[%clk 0:01:24.2]} 25.
Bh5 {[%clk 0:02:07.4]} 25... Ne3 {[%clk 0:01:16.3]} 26. Re1 {[%clk 0:02:05.6]}
26... Nxd5 {[%clk 0:01:16.3]} 27. Kh1 {[%clk 0:01:59.2]} 27... Rf8 {[%clk
0:01:13.9]} 28. Rbd1 {[%clk 0:01:55.3]} 28... Nf6 {[%clk 0:00:36.6]} 29. Nxf5
{[%clk 0:01:51.2]} 29... Ne4 {[%clk 0:00:23.2]} 30. Rxe4 {[%clk 0:01:44.6]}
30... Rxf5 {[%clk 0:00:23.7]} 31. Qh4 {[%clk 0:01:44.1]} 31... Bc6 {[%clk
0:00:17.4]} 32. Re2 {[%clk 0:01:41.3]} 32... Qc5 {[%clk 0:00:13]} 33. Bg4 {[%clk
0:00:52.2]} 33... Rxf4 {[%clk 0:00:13.5]} 34. Rd4 {[%clk 0:00:52.8]} 34... Rf1+
{[%clk 0:00:11.7]} 35. Kh2 {[%clk 0:00:52.8]} 35... Rf6 {[%clk 0:00:05.3]} 36.
Rxe7 {[%clk 0:00:50.8]} 36... Rxe7 {[%clk 0:00:03.6]} 37. Qxf6+ {[%clk
0:00:50.5]} 37... Rg7 {[%clk 0:00:04.1]} 38. Qf8+ {[%clk 0:00:50.6]} 38... Rg8
{[%clk 0:00:04.7]} 39. g7# {[%clk 0:00:51.5]} 1-0

[Event "Late-Titled-Tuesday-Blitz-February-06-2024"]
[Site "Chess.com"]
[Date "2024.02.06"]
[Round "2"]
[White "terrortoast"]
[Black "babero_gordo"]
[Result "1-0"]
[WhiteElo "2454"]
[BlackElo "2095"]
[TimeControl "180+1"]
[EndTime "14:17:45 PST"]
[Termination "terrortoast won by resignation"]

1. d4 {[%clk 0:03:00.2]} 1... Nf6 {[%clk 0:02:58]} 2. c4 {[%clk 0:02:59]} 2...
e5 {[%clk 0:02:58.2]} 3. dxe5 {[%clk 0:02:58.7]} 3... Ng4 {[%clk 0:02:58.7]} 4.
Bf4 {[%clk 0:02:58.3]} 4... Bb4+ {[%clk 0:02:53]} 5. Nd2 {[%clk 0:02:58]} 5...
Nc6 {[%clk 0:02:48.9]} 6. Nf3 {[%clk 0:02:58]} 6... Qe7 {[%clk 0:02:42.2]} 7. e3
{[%clk 0:02:57.5]} 7... Ncxe5 {[%clk 0:02:34.6]} 8. Nxe5 {[%clk 0:02:57.1]} 8...
Nxe5 {[%clk 0:02:35.5]} 9. Be2 {[%clk 0:02:57.7]} 9... a5 {[%clk 0:02:22.1]} 10.
a3 {[%clk 0:02:51.9]} 10... Bc5 {[%clk 0:02:17.5]} 11. Ne4 {[%clk 0:02:47.7]}
11... Ba7 {[%clk 0:02:08.9]} 12. Qc2 {[%clk 0:02:28.3]} 12... d6 {[%clk
0:02:00.2]} 13. O-O {[%clk 0:02:25.9]} 13... h6 {[%clk 0:01:54.1]} 14. h3 {[%clk
0:02:25.6]} 14... O-O {[%clk 0:01:52.2]} 15. Rad1 {[%clk 0:02:21.2]} 15... Ng6
{[%clk 0:01:49.7]} 16. Bg3 {[%clk 0:02:15.8]} 16... Bf5 {[%clk 0:01:45.1]} 17.
Bd3 {[%clk 0:02:03.4]} 17... Rfe8 {[%clk 0:01:42.5]} 18. Nf6+ {[%clk 0:02:01.6]}
18... Qxf6 {[%clk 0:01:34.3]} 19. Bxf5 {[%clk 0:02:02.5]} 19... Ne5 {[%clk
0:01:20.5]} 20. Be4 {[%clk 0:01:56.2]} 20... Rab8 {[%clk 0:01:01]} 21. b4 {[%clk
0:01:52.8]} 21... axb4 {[%clk 0:00:58.7]} 22. axb4 {[%clk 0:01:53.7]} 22... Nc6
{[%clk 0:00:55.7]} 23. Rb1 {[%clk 0:01:38.1]} 23... Qe7 {[%clk 0:00:42.1]} 24.
Bd5 {[%clk 0:01:36.4]} 24... Ne5 {[%clk 0:00:33.8]} 25. Qa2 {[%clk 0:00:43.2]}
25... Bb6 {[%clk 0:00:20.5]} 26. c5 {[%clk 0:00:42.5]} 26... dxc5 {[%clk
0:00:18.7]} 27. Bxe5 {[%clk 0:00:42.4]} 27... Qxe5 {[%clk 0:00:15.9]} 28. Bxf7+
{[%clk 0:00:42.6]} 28... Kh8 {[%clk 0:00:16.1]} 29. Bxe8 {[%clk 0:00:43.5]}
29... Rxe8 {[%clk 0:00:15.8]} 30. bxc5 {[%clk 0:00:40.9]} 30... Qxc5 {[%clk
0:00:16]} 31. Qf7 {[%clk 0:00:38.1]} 31... Qe7 {[%clk 0:00:15.5]} 32. Qf3 {[%clk
0:00:37.6]} 32... Rf8 {[%clk 0:00:14.8]} 33. Qxb7 {[%clk 0:00:34.4]} 33... Bxe3
{[%clk 0:00:13]} 34. fxe3 {[%clk 0:00:32.7]} 34... Qxe3+ {[%clk 0:00:13.9]} 35.
Kh1 {[%clk 0:00:32.9]} 35... Rxf1+ {[%clk 0:00:14.1]} 36. Rxf1 {[%clk
0:00:32.8]} 36... Qe5 {[%clk 0:00:13.8]} 37. Qc8+ {[%clk 0:00:32]} 37... Kh7
{[%clk 0:00:13.8]} 38. Qf5+ {[%clk 0:00:32.6]} 38... Qxf5 {[%clk 0:00:13.4]} 39.
Rxf5 {[%clk 0:00:33.5]} 39... Kg6 {[%clk 0:00:13.5]} 40. Rc5 {[%clk 0:00:34.4]}
1-0

[Event "Late-Titled-Tuesday-Blitz-February-06-2024"]
[Site "Chess.com"]
[Date "2024.02.06"]
[Round "2"]
[White "edgarhay012"]
[Black "temus_galaktionov"]
[Result "0-1"]
[WhiteElo "2579"]
[BlackElo "2888"]
[TimeControl "180+1"]
[EndTime "14:17:46 PST"]
[Termination "temus_galaktionov won by resignation"]

1. e4 {[%clk 0:03:00.9]} 1... c6 {[%clk 0:03:00.9]} 2. d4 {[%clk 0:03:00.6]}
2... g6 {[%clk 0:03:01.8]} 3. Nc3 {[%clk 0:03:00.6]} 3... d6 {[%clk 0:03:02.5]}
4. h4 {[%clk 0:02:59.6]} 4... Bg7 {[%clk 0:03:02.8]} 5. h5 {[%clk 0:02:59.7]}
5... Qb6 {[%clk 0:03:03.4]} 6. Nf3 {[%clk 0:02:58]} 6... Bg4 {[%clk 0:03:02.5]}
7. h6 {[%clk 0:02:57.6]} 7... Bf6 {[%clk 0:03:02.5]} 8. Na4 {[%clk 0:02:44.6]}
8... Qa5+ {[%clk 0:03:01.6]} 9. c3 {[%clk 0:02:45]} 9... b5 {[%clk 0:03:01.2]}
10. e5 {[%clk 0:02:35.4]} 10... dxe5 {[%clk 0:02:55.6]} 11. Nc5 {[%clk
0:01:56.2]} 11... exd4 {[%clk 0:02:53.3]} 12. Nb3 {[%clk 0:01:44.9]} 12... Qa4
{[%clk 0:02:23.3]} 13. cxd4 {[%clk 0:01:37.6]} 13... Na6 {[%clk 0:02:15.7]} 14.
a3 {[%clk 0:00:50.1]} 14... Be6 {[%clk 0:02:07.5]} 15. Nfd2 {[%clk 0:00:32.2]}
15... Rd8 {[%clk 0:02:04.4]} 16. Qc2 {[%clk 0:00:22]} 16... Bd5 {[%clk
0:01:58.9]} 17. Rh3 {[%clk 0:00:20.8]} 17... Bxd4 {[%clk 0:01:46.3]} 18. Nxd4
{[%clk 0:00:14.7]} 18... Qxd4 {[%clk 0:01:47.2]} 19. Rd3 {[%clk 0:00:15]} 19...
Qe5+ {[%clk 0:01:45.7]} 20. Re3 {[%clk 0:00:15]} 20... Qf6 {[%clk 0:01:39.6]}
21. Ne4 {[%clk 0:00:12.5]} 21... Qh4 {[%clk 0:01:22.4]} 22. Nc3 {[%clk
0:00:06.7]} 22... Be6 {[%clk 0:01:03.1]} 23. Nxb5 {[%clk 0:00:06.3]} 23... cxb5
{[%clk 0:00:58.3]} 24. Bxb5+ {[%clk 0:00:07.2]} 24... Bd7 {[%clk 0:00:54.2]} 25.
Bxa6 {[%clk 0:00:07.5]} 25... Nxh6 {[%clk 0:00:53]} 26. Bd2 {[%clk 0:00:04.5]}
26... Ng4 {[%clk 0:00:47]} 27. Rh3 {[%clk 0:00:02.8]} 27... Qxf2+ {[%clk
0:00:46.3]} 28. Kd1 {[%clk 0:00:03.4]} 28... O-O {[%clk 0:00:39.9]} 29. Kc1
{[%clk 0:00:02.2]} 29... Bf5 {[%clk 0:00:34.7]} 30. Bd3 {[%clk 0:00:01.2]} 30...
Rxd3 {[%clk 0:00:30.1]} 31. Rxd3 {[%clk 0:00:02.1]} 31... Ne5 {[%clk 0:00:29.6]}
32. Rf3 {[%clk 0:00:01.5]} 32... Nxf3 {[%clk 0:00:28.6]} 0-1